lending/lending_fUSD_20250121
["ID","MTS","AMOUNT","RATE_DAILY","PERIOD"]
[349887874,1737479438271,-666.98025103,0.00017858,2]
[349887875,1737479438281,-313.27,0.00017943,2]
[349887876,1737479438290,-500.0,0.00017976,2]
[349887877,1737479438299,-250.0,0.00017976,2]
[349887878,1737479438309,-200.0,0.00018038,2]
[349887879,1737479438318,-385.47,0.00018082,2]
[349887880,1737479438328,-167.88,0.00018206,2]
[349887881,1737479438338,-165.23,0.00018223,2]
[349887882,1737479438348,-150.0,0.00018261,2]
[349887883,1737479438357,-1000.0,0.0001829,2]
[349887884,1737479438367,-150.0,0.00018406,2]
[349887885,1737479438377,-455.63,0.00018526,2]
[349887886,1737479438387,-1140.825,0.00018548,2]
[349887887,1737479438397,-150.0,0.00018656,2]
[349887888,1737479438406,-150.0,0.00018687,2]
[349887889,1737479438416,-150.0,0.00018739,2]
[349887890,1737479438425,-385.47,0.00018751,2]
[349887891,1737479438435,-150.0,0.00018766,2]
[349887892,1737479438445,-150.0,0.00018816,2]
[349887893,1737479438454,-150.0,0.00018831,2]
[349887894,1737479438465,-150.0,0.00018899,2]
[349887896,1737479438474,-150.0,0.00018924,2]
[349887898,1737479438483,-1000.0,0.00018978,2]
[349887900,1737479438492,-6805.756,0.00018978,2]
[349887902,1737479438503,-1563.3818,0.00018978,2]
[349887904,1737479438511,-756.7208,0.00018978,2]
[349887906,1737479438520,-505.2468,0.00018978,2]
[349887908,1737479438529,-3873.0515,0.00018978,2]
[349887910,1737479438538,-150.0,0.00019061,2]
[349887912,1737479438547,-5701.41611019,0.00019078,2]
[349887914,1737479438559,-34537.6579,0.00019078,2]
[349887916,1737479438571,-20403.9339,0.00019078,2]
[349887917,1737479438579,-150.0,0.00019088,2]
[349887918,1737479438588,-150.0,0.00019094,2]
[349887919,1737479438598,-150.0,0.00019122,2]
[349887920,1737479438607,-150.0,0.00019139,2]
[349887921,1737479438616,-150.0,0.00019141,2]
[349887922,1737479438625,-600.0,0.00019164,2]
[349887923,1737479438634,-167.04,0.00019168,2]
[349887924,1737479438644,-500.0,0.00019178,2]
[349887925,1737479438654,-500.0,0.00019178,2]
[349887926,1737479438663,-518.06724969,0.00019178,2]
[349887927,1737479438672,-500.0,0.00019178,2]
[349887928,1737479438681,-500.0,0.00019178,2]
[349887929,1737479438690,-500.0,0.00019178,2]
[349887930,1737479438699,-500.0,0.00019178,2]
[349887931,1737479438709,-500.0,0.00019178,2]
[349887932,1737479438718,-512.95102902,0.00019178,2]
[349887933,1737479438727,-500.0,0.00019178,2]
[349887934,1737479438737,-500.0,0.00019178,2]
[349887935,1737479438746,-514.0791678,0.00019178,2]
[349887936,1737479438756,-500.0,0.00019178,2]
[349887937,1737479438765,-500.0,0.00019178,2]
[349887938,1737479438773,-500.0,0.00019178,2]
[349887939,1737479438782,-500.0,0.00019178,2]
[349887940,1737479438791,-500.0,0.00019178,2]
[349887941,1737479438800,-500.0,0.00019178,2]
[349887942,1737479438809,-500.0,0.00019178,2]
[349887943,1737479438818,-500.0,0.00019178,2]
[349887944,1737479438827,-500.0,0.00019178,2]
[349887945,1737479438836,-500.0,0.00019178,2]
[349887946,1737479438844,-500.0,0.00019178,2]
[349887947,1737479438854,-500.0,0.00019178,2]
[349887948,1737479438863,-500.0,0.00019178,2]
[349887949,1737479438872,-500.0,0.00019178,2]
[349887950,1737479438880,-525.7,0.00019178,2]
[349887951,1737479438888,-500.0,0.00019178,2]
[349887952,1737479438898,-500.0,0.00019178,2]
[349887953,1737479438907,-500.0,0.00019178,2]
[349887954,1737479438920,-500.0,0.00019178,2]
[349887955,1737479438929,-512.06,0.00019178,2]
[349887956,1737479438937,-500.0,0.00019178,2]
[349887957,1737479438946,-500.0,0.00019178,2]
[349887958,1737479438955,-500.0,0.00019178,2]
[349887959,1737479438966,-500.0,0.00019178,2]
[349887960,1737479438974,-500.0,0.00019178,2]
[349887961,1737479438983,-500.0,0.00019178,2]
[349887962,1737479438994,-500.0,0.00019178,2]
[349887963,1737479439003,-500.0,0.00019178,2]
[349887964,1737479439012,-500.0,0.00019178,2]
[349887965,1737479439022,-500.0,0.00019178,2]
[349887966,1737479439031,-776.49,0.00019178,2]
[349887967,1737479439040,-500.0,0.00019178,2]
[349887968,1737479439050,-500.0,0.00019178,2]
[349887969,1737479439059,-500.0,0.00019178,2]
[349887970,1737479439068,-487.96969057,0.00019178,2]
[349887971,1737479439078,-500.0,0.00019178,2]
[349887972,1737479439087,-500.0,0.00019178,2]
[349887973,1737479439096,-500.0,0.00019178,2]
[349887974,1737479439106,-528.45,0.00019178,2]
[349887975,1737479439115,-500.0,0.00019178,2]
[349887976,1737479439124,-572.08,0.00019178,2]
[349887977,1737479439133,-500.0,0.00019178,2]
[349887978,1737479439143,-500.0,0.00019178,2]
[349887979,1737479439152,-500.0,0.00019178,2]
[349887980,1737479439161,-500.0,0.00019178,2]
[349887981,1737479439171,-500.0,0.00019178,2]
[349887982,1737479439180,-500.0,0.00019178,2]
[349887983,1737479439190,-500.0,0.00019178,2]
[349887984,1737479439198,-500.0,0.00019178,2]
[349887985,1737479439209,-647.34,0.00019178,2]
[349887986,1737479439219,-500.0,0.00019178,2]
[349887987,1737479439228,-500.0,0.00019178,2]
[349887988,1737479439237,-349.25385768,0.00019178,2]
[349887989,1737479439246,-500.0,0.00019178,2]
[349887990,1737479439255,-500.0,0.00019178,2]
[349887991,1737479439264,-500.0,0.00019178,2]
[349887992,1737479439274,-500.0,0.00019178,2]
[349887993,1737479439284,-506.89,0.00019178,2]
[349887994,1737479439293,-500.0,0.00019178,2]
[349887995,1737479439303,-500.0,0.00019178,2]
[349887996,1737479439312,-500.0,0.00019178,2]
[349887997,1737479439321,-500.0,0.00019178,2]
[349887998,1737479439330,-500.0,0.00019178,2]
[349887999,1737479439339,-500.0,0.00019178,2]
[349888000,1737479439349,-500.0,0.00019178,2]
[349888001,1737479439359,-5031.25074527,0.00019178,2]
[349888002,1737479439373,-500.0,0.00019178,2]
[349888003,1737479439384,-500.0,0.00019178,2]
[349888004,1737479439394,-500.0,0.00019178,2]
[349888005,1737479439405,-500.0,0.00019178,2]
[349888006,1737479439415,-500.0,0.00019178,2]
[349888007,1737479439425,-293.47535025,0.00019178,2]
[349888008,1737479439435,-251.41905559,0.00019178,2]
[349888009,1737479439445,-500.0,0.00019178,2]
[349888010,1737479439455,-500.0,0.00019178,2]
[349888011,1737479439467,-500.0,0.00019178,2]
[349888012,1737479439476,-500.0,0.00019178,2]
[349888013,1737479439486,-500.0,0.00019178,2]
[349888014,1737479439495,-518.72377792,0.00019178,2]
[349888015,1737479439503,-500.0,0.00019178,2]
[349888016,1737479439513,-500.0,0.00019178,2]
[349888017,1737479439522,-500.0,0.00019178,2]
[349888018,1737479439532,-500.0,0.00019178,2]
[349888019,1737479439541,-500.0,0.00019178,2]
[349888020,1737479439550,-500.0,0.00019178,2]
[349888021,1737479439559,-500.0,0.00019178,2]
[349888022,1737479439568,-500.0,0.00019178,2]
[349888023,1737479439577,-500.0,0.00019178,2]
[349888024,1737479439586,-500.0,0.00019178,2]
[349888025,1737479439595,-500.0,0.00019178,2]
[349888026,1737479439605,-500.0,0.00019178,2]
[349888027,1737479439615,-500.0,0.00019178,2]
[349888028,1737479439624,-509.61055531,0.00019178,2]
[349888029,1737479439633,-466.0829842,0.00019178,2]
[349888030,1737479439643,-570.45378323,0.00019178,2]
[349888031,1737479439653,-500.0,0.00019178,2]
[349888032,1737479439663,-500.0,0.00019178,2]
[349888033,1737479439672,-500.0,0.00019178,2]
[349888034,1737479439680,-500.0,0.00019178,2]
[349888035,1737479439689,-500.0,0.00019178,2]
[349888036,1737479439698,-502.34755341,0.00019178,2]
[349888037,1737479439708,-500.0,0.00019178,2]
[349888038,1737479439718,-500.0,0.00019178,2]
[349888039,1737479439727,-500.0,0.00019178,2]
[349888040,1737479439735,-500.0,0.00019178,2]
[349888041,1737479439744,-500.0,0.00019178,2]
[349888042,1737479439753,-500.0,0.00019178,2]
[349888043,1737479439762,-500.0,0.00019178,2]
[349888044,1737479439771,-500.0,0.00019178,2]
[349888045,1737479439780,-500.0,0.00019178,2]
[349888046,1737479439789,-500.0,0.00019178,2]
[349888047,1737479439799,-500.0,0.00019178,2]
[349888048,1737479439807,-500.0,0.00019178,2]
[349888049,1737479439816,-500.0,0.00019178,2]
[349888050,1737479439826,-500.0,0.00019178,2]
[349888052,1737479439835,-500.0,0.00019178,2]
[349888054,1737479439844,-509.32,0.00019178,2]
[349888055,1737479439853,-500.0,0.00019178,2]
[349888056,1737479439862,-515.62,0.00019178,2]
[349888057,1737479439871,-500.0,0.00019178,2]
[349888058,1737479439880,-500.0,0.00019178,2]
[349888059,1737479439889,-500.0,0.00019178,2]
[349888060,1737479439898,-500.0,0.00019178,2]
[349888061,1737479439910,-500.0,0.00019178,2]
[349888062,1737479439919,-500.0,0.00019178,2]
[349888063,1737479439928,-500.0,0.00019178,2]
[349888064,1737479439937,-500.0,0.00019178,2]
[349888065,1737479439945,-500.0,0.00019178,2]
[349888066,1737479439955,-599.41,0.00019178,2]
[349888067,1737479439965,-500.0,0.00019178,2]
[349888068,1737479439974,-500.0,0.00019178,2]
[349888069,1737479439984,-500.0,0.00019178,2]
[349888070,1737479439994,-500.0,0.00019178,2]
[349888071,1737479440003,-500.0,0.00019178,2]
[349888072,1737479440011,-500.0,0.00019178,2]
[349888073,1737479440021,-500.0,0.00019178,2]
[349888074,1737479440030,-500.0,0.00019178,2]
[349888075,1737479440039,-500.0,0.00019178,2]
[349888076,1737479440048,-500.0,0.00019178,2]
[349888077,1737479440057,-500.0,0.00019178,2]
[349888078,1737479440066,-500.0,0.00019178,2]
[349888079,1737479440075,-207.63022035,0.00019178,2]
[349888080,1737479440084,-500.0,0.00019178,2]
[349888081,1737479440093,-500.0,0.00019178,2]
[349888082,1737479440101,-500.0,0.00019178,2]
[349888083,1737479440110,-500.0,0.00019178,2]
[349888084,1737479440119,-500.0,0.00019178,2]
[349888085,1737479440129,-500.0,0.00019178,2]
[349888086,1737479440138,-500.0,0.00019178,2]
[349888087,1737479440147,-500.0,0.00019178,2]
[349888088,1737479440361,-500.0,0.00019178,2]
[349888089,1737479440372,-500.0,0.00019178,2]
[349888090,1737479440381,-500.0,0.00019178,2]
[349888091,1737479440390,-500.0,0.00019178,2]
[349888092,1737479440399,-500.0,0.00019178,2]
[349888093,1737479440409,-2352.03,0.00019178,2]
[349888094,1737479440417,-500.0,0.00019178,2]
[349888095,1737479440426,-500.0,0.00019178,2]
[349888096,1737479440435,-500.0,0.00019178,2]
[349888097,1737479440444,-500.0,0.00019178,2]
[349888098,1737479440453,-698.650359,0.00019178,2]
[349888099,1737479440464,-500.0,0.00019178,2]
[349888100,1737479440473,-1124.94,0.00019178,2]
[349888101,1737479440483,-531.34,0.00019178,2]
[349888102,1737479440491,-500.0,0.00019178,2]
[349888103,1737479440500,-500.0,0.00019178,2]
[349888104,1737479440509,-1003.53,0.00019178,2]
[349888105,1737479440518,-563.702205,0.00019178,2]
[349888106,1737479440527,-500.0,0.00019178,2]
[349888107,1737479440536,-718.45,0.00019178,2]
[349888108,1737479440545,-500.0,0.00019178,2]
[349888109,1737479440554,-161.824447,0.00019178,2]
[349888110,1737479440564,-1881.9,0.00019178,2]
[349888111,1737479440573,-500.0,0.00019178,2]
[349888112,1737479440582,-777.47,0.00019178,2]
[349888113,1737479440591,-500.0,0.00019178,2]
[349888114,1737479440600,-739.46,0.00019178,2]
[349888115,1737479440609,-1142.64,0.00019178,2]
[349888116,1737479440618,-2002.12,0.00019178,2]
[349888117,1737479440626,-500.0,0.00019178,2]
[349888118,1737479440635,-523.85987035,0.00019178,2]
[349888119,1737479440645,-2517.4,0.00019178,2]
[349888120,1737479440654,-500.0,0.00019178,2]
[349888121,1737479440663,-552.17,0.00019178,2]
[349888122,1737479440671,-500.0,0.00019178,2]
[349888123,1737479440680,-737.99,0.00019178,2]
[349888124,1737479440689,-500.0,0.00019178,2]
[349888125,1737479440698,-1146.7,0.00019178,2]
[349888126,1737479440706,-626.45,0.00019178,2]
[349888127,1737479440717,-1079.87,0.00019178,2]
[349888128,1737479440726,-2035.94,0.00019178,2]
[349888129,1737479440735,-657.06,0.00019178,2]
[349888130,1737479440744,-916.07,0.00019178,2]
[349888131,1737479440754,-721.27,0.00019178,2]
[349888132,1737479440762,-1430.53,0.00019178,2]
[349888133,1737479440771,-1786.33,0.00019178,2]
[349888134,1737479440780,-500.0,0.00019178,2]
[349888135,1737479440789,-631.29,0.00019178,2]
[349888136,1737479440798,-1106.1,0.00019178,2]
[349888137,1737479440807,-2195.22,0.00019178,2]
[349888138,1737479440816,-500.0,0.00019178,2]
[349888139,1737479440825,-3164.59,0.00019178,2]
[349888140,1737479440833,-500.0,0.00019178,2]
[349888141,1737479440843,-2877.9,0.00019178,2]
[349888142,1737479440852,-1257.13,0.00019178,2]
[349888143,1737479440862,-500.0,0.00019178,2]
[349888144,1737479440871,-2008.47,0.00019178,2]
[349888145,1737479440880,-1016.06,0.00019178,2]
[349888146,1737479440890,-2998.19,0.00019178,2]
[349888147,1737479440900,-1129.37,0.00019178,2]
[349888148,1737479440910,-500.0,0.00019178,2]
[349888149,1737479440923,-794.84,0.00019178,2]
[349888150,1737479440932,-500.0,0.00019178,2]
[349888151,1737479440941,-1711.15,0.00019178,2]
[349888152,1737479440951,-1067.24,0.00019178,2]
[349888153,1737479440964,-1036.46,0.00019178,2]
[349888154,1737479440974,-1550.42,0.00019178,2]
[349888155,1737479440984,-573.63,0.00019178,2]
[349888156,1737479440994,-500.0,0.00019178,2]
[349888157,1737479441004,-169.955561,0.00019178,2]
[349888158,1737479441013,-500.0,0.00019178,2]
[349888159,1737479441022,-1712.5,0.00019178,2]
[349888160,1737479441031,-500.0,0.00019178,2]
[349888161,1737479441040,-1076.93,0.00019178,2]
[349888162,1737479441049,-500.0,0.00019178,2]
[349888163,1737479441058,-670.27,0.00019178,2]
[349888164,1737479441068,-5078.69,0.00019178,2]
[349888165,1737479441078,-1584.35,0.00019178,2]
[349888166,1737479441087,-500.0,0.00019178,2]
[349888167,1737479441096,-500.0,0.00019178,2]
[349888168,1737479441105,-2472.99,0.00019178,2]
[349888169,1737479441114,-2100.44,0.00019178,2]
[349888170,1737479441124,-912.99,0.00019178,2]
[349888171,1737479441134,-1537.4,0.00019178,2]
[349888172,1737479441143,-1047.56,0.00019178,2]
[349888173,1737479441152,-794.25,0.00019178,2]
[349888174,1737479441161,-500.0,0.00019178,2]
[349888175,1737479441170,-2060.25,0.00019178,2]
[349888176,1737479441179,-768.01,0.00019178,2]
[349888177,1737479441188,-500.0,0.00019178,2]
[349888178,1737479441197,-500.0,0.00019178,2]
[349888179,1737479441207,-500.0,0.00019178,2]
[349888180,1737479441218,-772.75,0.00019178,2]
[349888181,1737479441227,-1952.2,0.00019178,2]
[349888182,1737479441236,-500.0,0.00019178,2]
[349888183,1737479441246,-500.0,0.00019178,2]
[349888184,1737479441255,-939.15,0.00019178,2]
[349888185,1737479441264,-1499.2,0.00019178,2]
[349888186,1737479441273,-639.05,0.00019178,2]
[349888187,1737479441282,-500.0,0.00019178,2]
[349888188,1737479441291,-500.0,0.00019178,2]
[349888189,1737479441300,-550.31,0.00019178,2]
[349888190,1737479441309,-500.0,0.00019178,2]
[349888191,1737479441318,-500.0,0.00019178,2]
[349888192,1737479441327,-2090.6,0.00019178,2]
[349888193,1737479441336,-500.0,0.00019178,2]
[349888194,1737479441345,-500.0,0.00019178,2]
[349888195,1737479441354,-500.0,0.00019178,2]
[349888196,1737479441362,-703.86,0.00019178,2]
[349888197,1737479441371,-1157.02,0.00019178,2]
[349888198,1737479441380,-447.3,0.00019178,2]
[349888199,1737479441389,-150.0,0.00019206,2]
[349888200,1737479441398,-1000.0,0.00019206,2]
[349888201,1737479441407,-4975.26992765,0.00019235,2]
[349888202,1737479441416,-1000.0,0.00019244,2]
[349888203,1737479441425,-150.0,0.00019282,2]
[349888204,1737479441434,-5701.41611014,0.00019291,2]
[349888205,1737479441445,-150.0,0.00019301,2]
[349888206,1737479441455,-150.0,0.00019306,2]
[349888207,1737479441466,-167.04,0.00019325,2]
[349888208,1737479441476,-500.0,0.00019335,2]
[349888209,1737479441486,-500.0,0.00019335,2]
[349888210,1737479441496,-500.0,0.00019335,2]
[349888211,1737479441505,-500.0,0.00019335,2]
[349888212,1737479441515,-500.0,0.00019335,2]
[349888213,1737479441525,-500.0,0.00019335,2]
[349888214,1737479441535,-500.0,0.00019335,2]
[349888215,1737479441546,-500.0,0.00019335,2]
[349888216,1737479441556,-500.0,0.00019335,2]
[349888217,1737479441565,-500.0,0.00019335,2]
[349888218,1737479441575,-500.0,0.00019335,2]
[349888219,1737479441585,-500.0,0.00019335,2]
[349888220,1737479441595,-500.0,0.00019335,2]
[349888221,1737479441606,-245.83312068,0.00019335,2]
[349888222,1737479441616,-500.0,0.00019335,2]
[349888223,1737479441625,-505.86,0.00019335,2]
[349888224,1737479441635,-500.0,0.00019335,2]
[349888225,1737479441646,-500.0,0.00019335,2]
[349888226,1737479441656,-500.0,0.00019335,2]
[349888227,1737479441666,-500.0,0.00019335,2]
[349888228,1737479441676,-500.0,0.00019335,2]
[349888229,1737479441686,-500.0,0.00019335,2]
[349888230,1737479441695,-302.82335107,0.00019335,2]
[349888231,1737479441704,-500.0,0.00019335,2]
[349888232,1737479441717,-500.0,0.00019335,2]
[349888233,1737479441726,-500.0,0.00019335,2]
[349888234,1737479441736,-500.0,0.00019335,2]
[349888235,1737479441745,-500.0,0.00019335,2]
[349888236,1737479441755,-500.0,0.00019335,2]
[349888237,1737479441765,-500.0,0.00019335,2]
[349888238,1737479441775,-500.0,0.00019335,2]
[349888239,1737479441785,-500.0,0.00019335,2]
[349888240,1737479441794,-500.0,0.00019335,2]
[349888241,1737479441803,-168.12346944,0.00019335,2]
[349888242,1737479441812,-500.0,0.00019335,2]
[349888243,1737479441822,-500.0,0.00019335,2]
[349888244,1737479441832,-500.0,0.00019335,2]
[349888245,1737479441842,-500.0,0.00019335,2]
[349888246,1737479441852,-500.0,0.00019335,2]
[349888247,1737479441861,-500.0,0.00019335,2]
[349888248,1737479441870,-500.0,0.00019335,2]
[349888249,1737479441880,-500.0,0.00019335,2]
[349888250,1737479441889,-500.0,0.00019335,2]
[349888251,1737479441898,-500.0,0.00019335,2]
[349888252,1737479441908,-500.0,0.00019335,2]
[349888253,1737479441922,-500.0,0.00019335,2]
[349888254,1737479441932,-500.0,0.00019335,2]
[349888255,1737479441941,-500.0,0.00019335,2]
[349888256,1737479441951,-500.0,0.00019335,2]
[349888257,1737479441961,-500.0,0.00019335,2]
[349888258,1737479441971,-500.0,0.00019335,2]
[349888259,1737479441981,-500.0,0.00019335,2]
[349888260,1737479441992,-500.0,0.00019335,2]
[349888261,1737479442001,-500.0,0.00019335,2]
[349888262,1737479442011,-500.0,0.00019335,2]
[349888263,1737479442021,-500.0,0.00019335,2]
[349888264,1737479442030,-500.0,0.00019335,2]
[349888265,1737479442039,-509.61382164,0.00019335,2]
[349888266,1737479442048,-500.0,0.00019335,2]
[349888267,1737479442056,-500.0,0.00019335,2]
[349888268,1737479442066,-500.0,0.00019335,2]
[349888269,1737479442074,-500.0,0.00019335,2]
[349888270,1737479442082,-500.0,0.00019335,2]
[349888271,1737479442091,-500.0,0.00019335,2]
[349888272,1737479442100,-500.0,0.00019335,2]
[349888273,1737479442109,-500.0,0.00019335,2]
[349888274,1737479442118,-500.0,0.00019335,2]
[349888275,1737479442127,-500.0,0.00019335,2]
[349888276,1737479442136,-500.0,0.00019335,2]
[349888277,1737479442144,-500.0,0.00019335,2]
[349888278,1737479442154,-500.0,0.00019335,2]
[349888279,1737479442163,-500.0,0.00019335,2]
[349888280,1737479442172,-500.0,0.00019335,2]
[349888281,1737479442180,-500.0,0.00019335,2]
[349888282,1737479442189,-500.0,0.00019335,2]
[349888283,1737479442198,-500.0,0.00019335,2]
[349888284,1737479442207,-500.0,0.00019335,2]
[349888285,1737479442218,-578.2,0.00019335,2]
[349888286,1737479442228,-500.0,0.00019335,2]
[349888287,1737479442237,-500.0,0.00019335,2]
[349888288,1737479442247,-500.0,0.00019335,2]
[349888289,1737479442256,-500.0,0.00019335,2]
[349888290,1737479442265,-553.25,0.00019335,2]
[349888291,1737479442274,-500.0,0.00019335,2]
[349888292,1737479442283,-500.0,0.00019335,2]
[349888293,1737479442291,-500.0,0.00019335,2]
[349888294,1737479442299,-500.0,0.00019335,2]
[349888295,1737479442308,-500.0,0.00019335,2]
[349888296,1737479442318,-500.0,0.00019335,2]
[349888297,1737479442327,-461.71592847,0.00019335,2]
[349888298,1737479442336,-518.27,0.00019335,2]
[349888299,1737479442345,-500.0,0.00019335,2]
[349888300,1737479442355,-500.0,0.00019335,2]
[349888301,1737479442366,-500.0,0.00019335,2]
[349888302,1737479442376,-500.0,0.00019335,2]
[349888303,1737479442385,-475.17988628,0.00019335,2]
[349888304,1737479442396,-1420.64,0.00019335,2]
[349888305,1737479442406,-500.0,0.00019335,2]
[349888306,1737479442415,-500.0,0.00019335,2]
[349888307,1737479442424,-500.0,0.00019335,2]
[349888308,1737479442433,-500.0,0.00019335,2]
[349888309,1737479442442,-500.0,0.00019335,2]
[349888310,1737479442451,-500.0,0.00019335,2]
[349888311,1737479442461,-500.0,0.00019335,2]
[349888312,1737479442470,-1040.41,0.00019335,2]
[349888313,1737479442479,-500.0,0.00019335,2]
[349888314,1737479442489,-1034.85,0.00019335,2]
[349888315,1737479442498,-500.0,0.00019335,2]
[349888316,1737479442507,-1232.93,0.00019335,2]
[349888317,1737479442516,-2266.68,0.00019335,2]
[349888318,1737479442526,-732.29,0.00019335,2]
[349888319,1737479442534,-500.0,0.00019335,2]
[349888320,1737479442544,-1145.55,0.00019335,2]
[349888321,1737479442553,-1448.67,0.00019335,2]
[349888322,1737479442562,-635.08928762,0.00019335,2]
[349888323,1737479442571,-874.76,0.00019335,2]
[349888324,1737479442580,-500.0,0.00019335,2]
[349888325,1737479442589,-500.0,0.00019335,2]
[349888326,1737479442599,-500.0,0.00019335,2]
[349888327,1737479442608,-500.0,0.00019335,2]
[349888328,1737479442618,-2577.28,0.00019335,2]
[349888329,1737479442627,-500.0,0.00019335,2]
[349888330,1737479442637,-1088.17,0.00019335,2]
[349888331,1737479442647,-500.0,0.00019335,2]
[349888332,1737479442656,-1796.36,0.00019335,2]
[349888333,1737479442665,-640.73,0.00019335,2]
[349888334,1737479442674,-500.0,0.00019335,2]
[349888335,1737479442684,-4318.56,0.00019335,2]
[349888336,1737479442694,-735.56,0.00019335,2]
[349888337,1737479442704,-1359.04,0.00019335,2]
[349888338,1737479442715,-710.9,0.00019335,2]
[349888339,1737479442724,-500.0,0.00019335,2]
[349888340,1737479442734,-1294.45,0.00019335,2]
[349888341,1737479442744,-4644.51,0.00019335,2]
[349888342,1737479442753,-851.33,0.00019335,2]
[349888343,1737479442762,-500.0,0.00019335,2]
[349888345,1737479442771,-561.61,0.00019335,2]
[349888346,1737479442780,-1491.18,0.00019335,2]
[349888347,1737479442789,-500.0,0.00019335,2]
[349888348,1737479442798,-500.0,0.00019335,2]
[349888349,1737479442808,-1158.68,0.00019335,2]
[349888350,1737479442817,-356.55439078,0.00019335,2]
[349888351,1737479442827,-5000.0,0.00019351,2]
[349888352,1737479442835,-500.0,0.00019351,2]
[349888353,1737479442845,-385.47,0.0001942,2]
[349888355,1737479442854,-1000.0,0.00019439,2]
[349888357,1737479442863,-500.0,0.00019451,2]
[349888359,1737479442873,-810.5,0.00019451,2]
[349888362,1737479442882,-4560.48,0.00019451,2]
[349888364,1737479442891,-500.0,0.00019451,2]
[349888367,1737479442901,-701.77,0.00019451,2]
[349888369,1737479442915,-500.0,0.00019451,2]
[349888371,1737479442924,-749.14,0.00019451,2]
[349888373,1737479442933,-629.26,0.00019451,2]
[349888374,1737479442942,-590.33,0.00019451,2]
[349888375,1737479442953,-754.04,0.00019451,2]
[349888376,1737479442962,-500.0,0.00019451,2]
[349888377,1737479442971,-925.58,0.00019451,2]
[349888378,1737479442981,-709.95,0.00019451,2]
[349888379,1737479442992,-941.04,0.00019451,2]
[349888380,1737479443001,-1413.99,0.00019451,2]
[349888381,1737479443010,-3214.68,0.00019451,2]
[349888382,1737479443019,-808.85,0.00019451,2]
[349888383,1737479443029,-574.34,0.00019451,2]
[349888384,1737479443038,-1537.18,0.00019451,2]
[349888385,1737479443048,-500.0,0.00019451,2]
[349888386,1737479443057,-500.0,0.00019451,2]
[349888387,1737479443066,-1102.43,0.00019451,2]
[349888388,1737479443075,-1076.06,0.00019451,2]
[349888389,1737479443084,-500.0,0.00019451,2]
[349888390,1737479443095,-1000.0,0.00019451,2]
[349888391,1737479443104,-1032.19,0.00019451,2]
[349888392,1737479443114,-500.0,0.00019451,2]
[349888393,1737479443122,-1196.17,0.00019451,2]
[349888394,1737479443131,-1153.34,0.00019451,2]
[349888395,1737479443141,-500.0,0.00019452,2]
[349888396,1737479443150,-500.0,0.00019452,2]
[349888397,1737479443159,-164.66468651,0.00019452,2]
[349888398,1737479443167,-500.0,0.00019452,2]